bitfinex/quotes_BTCUSD_20251202
["timestamp","ask_amount","ask_price","bid_price","bid_amount"]
[1764698578718,0.0004,91650.0,91649.0,2.60838827]
[1764698579463,0.0004,91660.0,91659.0,0.54120006]
[1764698579666,0.00051564,91660.0,91659.0,0.57433006]
[1764698579837,0.0004,91670.0,91659.0,0.57433006]
[1764698579838,0.0004,91670.0,91669.0,0.54117626]
[1764698580125,0.00078538,91670.0,91669.0,0.65834066]
[1764698581038,0.21895926,91670.0,91669.0,0.0834]
[1764698581239,0.00078538,91670.0,91669.0,0.0834]
[1764698582160,0.00078538,91670.0,91669.0,0.03313]
[1764698583026,0.00078538,91670.0,91669.0,0.0834]
[1764698583399,0.00195117,91670.0,91669.0,0.0834]
[1764698584793,0.0004,91700.0,91690.0,0.01090631]
[1764698584794,0.01090524,91699.0,91690.0,0.01090631]
[1764698585008,0.01130512,91700.0,91688.0,0.01090655]
[1764698585009,0.0004,91700.0,91699.0,0.02449]
[1764698585217,0.00051557,91700.0,91699.0,0.05762]
[1764698585417,0.00051557,91700.0,91699.0,0.10789]
[1764698585637,0.00051557,91700.0,91699.0,0.02449]
[1764698585787,0.21812629,91690.0,91689.0,0.02449]
[1764698585989,0.00051557,91700.0,91699.0,0.03026]
[1764698586350,0.00051557,91700.0,91699.0,0.07775]
[1764698586578,0.00051557,91700.0,91699.0,0.09515]
[1764698586978,0.00051557,91700.0,91686.0,0.01090679]
[1764698586979,0.01090572,91695.0,91687.0,0.04749]
[1764698587109,0.21812606,91691.0,91687.0,0.0174]
[1764698588507,0.21812606,91691.0,91653.0,0.43642583]
[1764698588508,0.21815722,91677.0,91650.0,0.03545107]
[1764698588726,0.21817864,91668.0,91661.0,0.04749]
[1764698589134,0.21817864,91668.0,91667.0,0.10224]
[1764698589542,0.22908531,91670.0,91667.0,0.10224]
[1764698589800,0.22908531,91670.0,91669.0,0.03026]
[1764698590446,0.06252299,91674.0,91669.0,0.03026]
[1764698590617,0.2181715,91671.0,91670.0,0.03026]
[1764698591136,0.2181715,91671.0,91667.0,0.03249]
[1764698591137,0.21817864,91668.0,91667.0,0.03249]
[1764698591355,0.28070163,91668.0,91667.0,0.008]
[1764698591556,0.28070163,91668.0,91667.0,0.001]
[1764698592374,0.06252299,91663.0,91657.0,0.04193]
[1764698592588,0.21820244,91658.0,91657.0,0.04193]
[1764698592790,0.01090988,91660.0,91657.0,0.04193]
[1764698592985,0.22910506,91661.0,91657.0,0.27104425]
[1764698593185,0.22910506,91661.0,91660.0,0.03026]
[1764698593734,0.21820244,91658.0,91657.0,0.04193]
[1764698593949,0.21820244,91658.0,91657.0,0.04393]
[1764698594174,0.21820066,91659.0,91657.0,0.05475]
[1764698594383,0.01090988,91660.0,91657.0,0.07198]
[1764698594597,0.33390655,91688.0,91672.0,0.01090845]
[1764698594808,0.29160182,91672.0,91667.0,0.02454]
[1764698595036,0.21817864,91668.0,91667.0,0.02454]
[1764698595659,0.28070163,91668.0,91667.0,0.02454]
[1764698596076,0.21820244,91658.0,91650.0,0.07203]
[1764698596322,0.22910824,91660.0,91655.0,0.0174]
[1764698596544,0.22910824,91660.0,91659.0,0.03026]
[1764698596953,0.01090988,91660.0,91659.0,0.03026]
[1764698597161,0.2182072,91656.0,91655.0,0.0174]
[1764698597356,0.2182072,91656.0,91655.0,0.01778538]
[1764698597971,0.28073019,91656.0,91655.0,0.00038538]
[1764698599204,0.28073019,91656.0,91655.0,0.00838538]
[1764698599401,0.28073019,91656.0,91655.0,0.00038538]
[1764698599832,0.28073019,91656.0,91655.0,0.00438538]
[1764698600119,0.06252299,91656.0,91655.0,0.07813538]
[1764698600394,0.06252299,91656.0,91655.0,0.00038538]
[1764698600563,0.06252299,91656.0,91655.0,0.00538538]
[1764698600564,0.08442402,91656.0,91655.0,0.00538538]
[1764698601005,0.06252299,91656.0,91655.0,0.03564538]
[1764698601172,0.06252299,91656.0,91655.0,0.30134497]
[1764698601643,0.06252299,91656.0,91655.0,0.08313538]
[1764698602161,0.06252299,91660.0,91656.0,0.01091036]
[1764698602371,0.06252299,91658.0,91657.0,0.03026]
[1764698602579,0.06252299,91662.0,91660.0,0.03026]
[1764698602791,0.06252299,91662.0,91659.0,0.01091]
[1764698603000,0.06252299,91669.0,91662.0,0.22910189]
[1764698603174,0.22908775,91668.0,91663.0,0.22910001]
[1764698603384,0.06252299,91665.0,91662.0,0.04116964]
[1764698603582,0.06252299,91665.0,91663.0,0.21819051]
[1764698603787,0.0163244,91673.0,91669.0,0.01090881]
[1764698603987,0.03276538,91698.0,91677.0,0.02418588]
[1764698603988,0.0174,91683.0,91677.0,0.02418588]
[1764698604161,0.06252299,91682.0,91677.0,0.2423431]
[1764698604362,0.06252299,91682.0,91677.0,0.02418588]
[1764698604691,0.01090583,91694.0,91677.0,0.3200931]
[1764698605028,0.01090595,91693.0,91677.0,0.3200931]
[1764698605161,0.22902542,91693.0,91677.0,0.3200931]
[1764698605371,0.22902046,91695.0,91677.0,0.3210931]
[1764698605573,0.01090619,91691.0,91677.0,0.3210931]
[1764698605777,0.01090619,91691.0,91677.0,0.3200931]
[1764698605973,0.01090595,91693.0,91677.0,0.3200931]
[1764698606224,0.22901834,91696.0,91677.0,0.3210931]
[1764698606543,0.01090619,91691.0,91677.0,0.3210931]
[1764698606760,0.22902593,91693.0,91677.0,0.3210931]
[1764698606967,0.06252299,91692.0,91677.0,0.3210931]
[1764698607586,0.06252299,91696.0,91677.0,0.3200931]
[1764698607805,0.0004,91700.0,91677.0,0.3200931]
[1764698607946,0.01090536,91698.0,91677.0,0.3200931]
[1764698608151,0.06252299,91694.0,91677.0,0.3200931]
[1764698608764,0.06252299,91695.0,91677.0,0.3200931]
[1764698609080,0.06252299,91696.0,91677.0,0.3200931]
[1764698609887,0.06252299,91697.0,91677.0,0.3200931]
[1764698610098,0.0004,91700.0,91677.0,0.3200931]
[1764698610302,0.0004,91700.0,91677.0,0.6594175]
[1764698610508,0.0004,91700.0,91699.0,0.21810488]
[1764698610729,0.0004,91700.0,91699.0,0.31325488]
[1764698611130,0.00104081,91700.0,91699.0,0.31325488]
[1764698611807,0.00115638,91700.0,91699.0,0.31325488]
[1764698612945,0.00115638,91700.0,91699.0,0.33519663]
[1764698613142,0.00115638,91700.0,91699.0,0.31325488]
[1764698613751,0.00115638,91700.0,91699.0,0.33519663]
[1764698614020,0.00115638,91700.0,91699.0,0.31325488]
[1764698614197,0.00115638,91700.0,91699.0,0.65819663]
[1764698615283,0.00115638,91700.0,91699.0,0.63625488]
[1764698615499,0.00115638,91700.0,91699.0,0.65819663]
[1764698615706,0.00115638,91700.0,91699.0,0.61885488]
[1764698615909,0.00115638,91700.0,91699.0,0.41815]
[1764698617722,0.00115638,91700.0,91699.0,0.44009175]
[1764698617920,0.00115638,91700.0,91699.0,0.41815]
[1764698618873,0.00115638,91700.0,91699.0,2.44009175]
[1764698620139,0.0004,91710.0,91699.0,2.44009175]
[1764698620140,0.0004,91710.0,91709.0,0.34494175]
[1764698620398,0.0004,91720.0,91719.0,0.21805732]
[1764698620527,0.0004,91720.0,91719.0,0.59393732]
[1764698620899,0.0004,91720.0,91719.0,0.63960732]
[1764698621114,0.0004,91720.0,91719.0,0.65700732]
[1764698621315,0.0004,91720.0,91719.0,0.43895]
[1764698621463,0.0004,91720.0,91719.0,0.11595]
[1764698622269,0.0004,91720.0,91719.0,0.09855]
[1764698624059,0.0004,91720.0,91719.0,0.05388]
[1764698624421,0.0004,91720.0,91719.0,0.05888]
[1764698624668,0.0004,91720.0,91719.0,0.05288]
[1764698624790,0.0004,91720.0,91719.0,0.05988]
[1764698624990,0.0004,91720.0,91719.0,0.02845]
[1764698625231,0.0004,91720.0,91719.0,0.02245]
[1764698625438,0.0004,91720.0,91719.0,0.05988]
[1764698625820,0.0004,91720.0,91719.0,0.05888]
[1764698626028,0.0004,91720.0,91719.0,0.10455]
[1764698626231,0.00098235,91720.0,91719.0,0.10555]
[1764698627878,0.21903729,91720.0,91719.0,0.10555]
[1764698628245,0.00098235,91720.0,91719.0,0.10555]
[1764698628466,0.00098235,91720.0,91719.0,0.32360732]
[1764698629250,0.63366246,91760.0,91719.0,0.32360732]
[1764698629251,0.01089835,91757.0,91737.0,0.01090072]
[1764698629492,0.01089835,91757.0,91739.0,0.24943978]
[1764698629493,0.00051553,91740.0,91739.0,0.24943978]
[1764698629917,0.00051553,91740.0,91739.0,0.29510978]
[1764698630320,0.0010977,91740.0,91739.0,0.29510978]
[1764698631183,0.0010977,91740.0,91739.0,0.30110978]
[1764698631523,0.0010977,91740.0,91739.0,0.31850978]
[1764698631980,0.0010977,91740.0,91739.0,0.31250978]
[1764698632181,0.0010977,91740.0,91739.0,0.31350978]
[1764698632544,0.0010977,91740.0,91739.0,0.31450978]
[1764698633172,0.0010977,91740.0,91739.0,0.31350978]
[1764698633577,0.0010977,91740.0,91739.0,0.31250978]
[1764698634376,0.0010977,91740.0,91739.0,0.33445153]
[1764698634601,0.0010977,91740.0,91739.0,0.31350978]
[1764698634801,0.0010977,91740.0,91739.0,0.31250978]
[1764698635228,0.0010977,91740.0,91739.0,0.31850978]
[1764698635414,0.0010977,91740.0,91739.0,0.31250978]
[1764698636132,0.0010977,91740.0,91739.0,0.45890978]
[1764698636337,0.0010977,91740.0,91739.0,0.33445153]
[1764698636495,0.0010977,91740.0,91739.0,0.63550978]
[1764698637367,0.0032369,91750.0,91747.0,0.01089953]
[1764698637569,0.0004,91760.0,91759.0,0.54096227]
[1764698637785,0.0004,91760.0,91759.0,0.65691227]
[1764698637989,0.0004,91760.0,91759.0,0.63951227]
[1764698638211,0.0004,91760.0,91759.0,0.65691227]
[1764698638584,0.0004,91760.0,91759.0,0.09855]
[1764698638786,0.0004,91760.0,91759.0,0.11595]
[1764698639199,0.0004,91760.0,91759.0,0.09855]
[1764698640181,0.0004,91760.0,91759.0,0.02145]
[1764698640497,0.02230103,91760.0,91759.0,0.02845]
[1764698640678,0.0004,91760.0,91759.0,0.05988]
[1764698640881,0.06292299,91760.0,91759.0,0.02845]
[1764698641081,0.06292299,91760.0,91759.0,0.02245]
[1764698641297,0.0004,91760.0,91759.0,0.05388]
[1764698641489,0.0004,91760.0,91759.0,0.09955]
[1764698641696,0.0004,91760.0,91759.0,0.09855]
[1764698641895,0.0004,91760.0,91759.0,0.10455]
[1764698642297,0.06292299,91760.0,91759.0,0.006]
[1764698642498,0.06292299,91760.0,91759.0,0.005]
[1764698642977,0.06292299,91760.0,91759.0,0.001]
[1764698643402,0.06292299,91760.0,91759.0,0.006]
[1764698643621,0.01089846,91756.0,91752.0,0.05656894]
[1764698643775,0.21797425,91754.0,91752.0,0.04567]
[1764698643979,0.21797652,91753.0,91752.0,0.04567]
[1764698644495,0.21797652,91753.0,91752.0,0.2235]
[1764698644915,0.21798365,91750.0,91743.0,0.04567]
[1764698645113,0.21800028,91743.0,91742.0,0.03885]
[1764698645333,0.21800028,91743.0,91742.0,0.02145]
[1764698646182,0.21800028,91743.0,91736.0,0.04567]
[1764698646183,0.06252299,91736.0,91732.0,0.01090132]
[1764698646357,0.06252299,91739.0,91736.0,0.01090084]
[1764698646557,0.06252299,91739.0,91729.0,0.02145]
[1764698646558,0.01090132,91732.0,91729.0,0.02145]
[1764698646759,0.01090132,91732.0,91729.0,0.02156553]
[1764698646960,0.21802996,91731.0,91729.0,0.02156553]
[1764698647382,0.01090072,91737.0,91733.0,0.0109012]
[1764698647590,0.22890801,91740.0,91732.0,0.01090132]
[1764698647591,0.06252299,91736.0,91734.0,0.02863]
[1764698647922,0.28054005,91736.0,91734.0,0.02863]
[1764698648902,0.2289299,91732.0,91729.0,0.02156553]
[1764698649072,0.21802951,91731.0,91729.0,0.02156553]
[1764698649280,0.21802951,91731.0,91729.0,0.02256553]
[1764698649493,0.21802951,91731.0,91729.0,0.02156553]
[1764698649915,0.02190103,91730.0,91729.0,0.02156553]
[1764698650117,0.02190103,91731.0,91729.0,5.02156553]
[1764698650320,0.21802662,91732.0,91730.0,0.02863]
[1764698650765,0.28055416,91730.0,91729.0,5.00011553]
[1764698651179,0.28055416,91730.0,91729.0,5.00111553]
[1764698651772,0.30245519,91730.0,91729.0,5.00111553]
[1764698652596,0.06252299,91730.0,91729.0,5.02105553]
[1764698652912,0.08442402,91730.0,91729.0,5.00011553]
[1764698653520,0.08442402,91730.0,91729.0,5.00311553]
[1764698653904,0.06252299,91730.0,91729.0,5.00311553]
[1764698654495,0.06252299,91730.0,91729.0,5.02405553]
[1764698655228,0.28055416,91730.0,91729.0,5.02405553]
[1764698656049,0.28055416,91730.0,91729.0,5.09698553]
[1764698656300,0.28055416,91730.0,91729.0,5.05268553]
[1764698657148,0.28055416,91730.0,91729.0,5.02405553]
[1764698657354,0.28055416,91730.0,91729.0,5.00311553]
[1764698658733,0.30245519,91730.0,91729.0,5.00311553]
[1764698659736,0.28055416,91730.0,91729.0,5.00311553]
[1764698659966,0.30245519,91730.0,91729.0,5.00311553]
[1764698660781,0.28055416,91730.0,91729.0,5.00311553]
[1764698661326,0.30245519,91730.0,91729.0,5.00311553]
[1764698662276,0.28055416,91730.0,91729.0,5.05268553]
[1764698662679,0.28055416,91730.0,91729.0,5.02405553]
[1764698662885,0.28055416,91730.0,91729.0,5.00311553]
[1764698663462,0.30245519,91730.0,91729.0,5.00311553]
[1764698664902,0.28055416,91730.0,91729.0,5.00311553]
[1764698665282,0.30245519,91730.0,91729.0,5.00311553]
[1764698668055,0.28055416,91730.0,91729.0,5.00311553]
[1764698668429,0.30245519,91730.0,91729.0,5.00311553]
[1764698672055,0.64281519,91730.0,91729.0,5.00311553]
[1764698673230,0.62545519,91730.0,91729.0,5.00011553]
[1764698673455,0.64281519,91730.0,91729.0,5.00011553]
[1764698674355,0.61375286,91730.0,91729.0,5.00011553]
[1764698674560,0.64650393,91730.0,91729.0,5.00211553]
[1764698674796,0.64650393,91730.0,91729.0,5.00011553]
[1764698674998,0.64650393,91730.0,91729.0,5.00111553]
[1764698675414,0.67000566,91730.0,91729.0,5.00111553]
[1764698676891,0.636545,91730.0,91729.0,5.00111553]
[1764698678280,0.636545,91730.0,91729.0,4.92899553]
[1764698678899,0.69906799,91730.0,91729.0,4.92899553]
[1764698679310,0.69906799,91730.0,91729.0,4.92799553]
[1764698679519,0.69906799,91730.0,91729.0,4.36918176]
[1764698679714,0.79309674,91730.0,91729.0,4.01197063]
[1764698679944,0.69906799,91730.0,91729.0,3.87877863]
[1764698680117,0.72835724,91730.0,91729.0,3.83529868]
[1764698680314,0.69906799,91730.0,91729.0,3.5269528]
[1764698680643,0.69906799,91730.0,91729.0,3.26033891]
[1764698681635,0.68170799,91730.0,91729.0,3.26033891]
[1764698681877,0.70006799,91730.0,91729.0,3.26033891]
[1764698682983,0.68270799,91730.0,91729.0,3.26033891]
[1764698683215,0.70006799,91730.0,91729.0,3.26033891]
[1764698683413,0.69906799,91730.0,91729.0,3.26033891]
[1764698683821,0.70006799,91730.0,91729.0,3.26033891]
[1764698684072,0.15903682,91730.0,91729.0,3.26033891]
[1764698684206,0.37706799,91730.0,91729.0,3.26033891]
[1764698684994,0.37606799,91730.0,91729.0,3.26033891]
[1764698685394,0.37706799,91730.0,91729.0,3.26033891]
[1764698685983,0.37606799,91730.0,91729.0,3.26033891]
[1764698686189,0.70006799,91730.0,91729.0,3.26033891]
[1764698686562,0.69906799,91730.0,91729.0,3.26033891]
[1764698686945,0.70006799,91730.0,91729.0,3.26033891]
[1764698688177,0.70006799,91730.0,91729.0,2.51774422]
[1764698688381,0.70006799,91730.0,91729.0,2.14206535]
[1764698688556,0.78331028,91730.0,91729.0,1.84867217]
[1764698688762,0.78331028,91730.0,91729.0,1.81594431]
[1764698688964,0.89301534,91730.0,91729.0,1.78321645]
[1764698689159,0.89301534,91730.0,91729.0,1.03501026]
[1764698689361,0.89301534,91730.0,91729.0,0.71277264]
[1764698689590,0.89201534,91730.0,91729.0,0.45475186]
[1764698689867,0.89201534,91730.0,91729.0,0.37285746]
[1764698690067,0.89401534,91730.0,91729.0,0.34012072]
[1764698690245,0.62551463,91705.0,91704.0,0.00150649]
[1764698690449,0.79244582,91705.0,91704.0,1e-08]
[1764698690681,0.68274076,91705.0,91704.0,1e-08]
[1764698691287,0.71550832,91705.0,91704.0,1e-08]
[1764698692426,0.71650832,91705.0,91704.0,1e-08]
[1764698693460,0.69910832,91705.0,91704.0,1e-08]
[1764698693664,0.71646832,91705.0,91704.0,1e-08]
[1764698693872,0.71889899,91705.0,91704.0,1e-08]
[1764698694216,0.73625899,91705.0,91704.0,1e-08]
[1764698695140,0.71646832,91705.0,91704.0,1e-08]
[1764698699530,0.21820984,91655.0,91644.0,0.33391178]
[1764698699821,0.01091083,91652.0,91644.0,0.32338538]
[1764698700037,0.24013443,91645.0,91644.0,0.00038538]
[1764698700246,0.30265742,91645.0,91644.0,0.00038538]
[1764698700456,0.30265742,91645.0,91644.0,0.00213401]
[1764698700659,0.30265742,91645.0,91644.0,0.00313401]
[1764698701186,0.30265742,91645.0,91644.0,0.00213401]
[1764698701320,0.62565742,91645.0,91644.0,0.00213401]
[1764698701519,0.64906935,91645.0,91644.0,0.00213401]
[1764698701846,0.64906935,91645.0,91644.0,1e-08]
[1764698702226,0.62569076,91631.0,91630.0,0.0004]
[1764698702433,0.68280307,91631.0,91630.0,0.00051557]
[1764698702637,0.71532307,91631.0,91630.0,0.00051557]
[1764698703177,0.82502813,91631.0,91630.0,0.00051557]
[1764698703538,0.71532307,91631.0,91630.0,0.00051557]
[1764698703800,0.71632307,91631.0,91630.0,0.00051557]
[1764698704201,0.71732307,91631.0,91630.0,0.00051557]
[1764698704737,0.62573841,91611.0,91599.0,0.00147774]
[1764698704956,0.62573841,91611.0,91610.0,0.00051564]
[1764698704957,0.67572281,91611.0,91610.0,0.00051564]
[1764698705211,0.69198281,91611.0,91610.0,0.00051564]
[1764698705407,0.69635569,91611.0,91610.0,0.00051564]
[1764698705970,0.69635569,91611.0,91610.0,0.00151564]
[1764698705971,0.67895569,91611.0,91610.0,0.00151564]
[1764698706179,0.69635569,91611.0,91610.0,0.00151564]
[1764698708535,0.67895569,91611.0,91610.0,0.00151564]
[1764698708762,0.69635569,91611.0,91610.0,0.00151564]
[1764698708919,0.69635569,91611.0,91610.0,0.00250722]
[1764698709518,0.67895569,91611.0,91610.0,0.00250722]
[1764698709827,0.36898281,91611.0,91610.0,0.00250722]
[1764698710637,0.35158281,91611.0,91610.0,0.00250722]
[1764698710848,0.36898281,91611.0,91610.0,0.00250722]
[1764698711791,0.36898281,91611.0,91610.0,0.00150722]
[1764698711995,0.36898281,91611.0,91610.0,0.00250722]
[1764698712508,0.7976483,91611.0,91610.0,0.00250722]
[1764698712740,0.69198281,91611.0,91610.0,0.00250722]
[1764698713221,0.67458281,91611.0,91610.0,0.00150722]
[1764698713426,0.69198281,91611.0,91610.0,0.00150722]
[1764698713804,0.69635538,91611.0,91610.0,0.00150722]
[1764698715184,0.67895538,91611.0,91610.0,0.00150722]
[1764698715411,0.36898281,91611.0,91610.0,0.00150722]
[1764698716115,0.35158281,91611.0,91610.0,0.00150722]
[1764698716312,0.36898281,91611.0,91610.0,0.00150722]
[1764698716537,0.36898281,91611.0,91610.0,0.00250722]
[1764698717014,0.34708178,91611.0,91610.0,0.00250722]
[1764698717230,0.69198281,91611.0,91610.0,0.00250722]
[1764698717736,0.67008178,91611.0,91610.0,0.00250722]
[1764698717977,0.69198281,91611.0,91610.0,0.00250722]
[1764698718210,0.69198281,91611.0,91610.0,0.00150722]
[1764698719089,0.36898281,91611.0,91610.0,0.00150722]
[1764698719261,0.35158281,91611.0,91610.0,0.00150722]
[1764698719701,0.36898281,91611.0,91610.0,0.00250722]
[1764698720702,0.69198281,91611.0,91610.0,0.00250722]
[1764698721354,0.69198281,91611.0,91610.0,0.00150722]
[1764698721531,0.69198281,91611.0,91610.0,0.00250722]
[1764698721970,0.69198281,91611.0,91610.0,0.00150722]
[1764698722722,0.69635569,91611.0,91610.0,0.00150722]
[1764698722929,0.35595569,91611.0,91610.0,0.00150722]
[1764698723132,0.36898281,91611.0,91610.0,0.00150722]
[1764698723999,0.35158281,91611.0,91610.0,0.00150722]
[1764698724223,0.36898281,91611.0,91610.0,0.00150722]
[1764698725696,0.36898281,91611.0,91610.0,0.00250722]
[1764698726479,0.33532281,91611.0,91610.0,0.00250722]
[1764698726677,0.03822543,91611.0,91610.0,0.00250722]
[1764698727490,0.02190103,91622.0,91615.0,0.01091524]
[1764698727785,0.0163244,91617.0,91614.0,0.04559]
[1764698728469,0.01091417,91624.0,91616.0,0.06147]
[1764698728657,0.02190103,91619.0,91618.0,0.06147]
[1764698729139,0.03281591,91618.0,91615.0,0.001]
[1764698729368,0.24021542,91611.0,91610.0,0.00051564]
[1764698729580,0.25647542,91611.0,91610.0,0.00051564]
[1764698730432,0.03816103,91611.0,91610.0,0.00051564]
[1764698730636,0.25647542,91611.0,91610.0,0.00051564]
[1764698731069,0.10068402,91611.0,91610.0,0.00051564]
[1764698731582,0.31899841,91611.0,91610.0,0.00351564]
[1764698731957,0.31899841,91611.0,91610.0,0.00451564]
[1764698732375,0.10068402,91611.0,91610.0,0.00451564]
[1764698732606,0.08442402,91611.0,91610.0,0.00451564]
[1764698732824,0.30273841,91611.0,91610.0,0.00451564]
[1764698733205,0.30273841,91611.0,91610.0,0.00550722]
[1764698733512,0.08442402,91611.0,91610.0,0.00550722]
[1764698733714,0.30273841,91611.0,91610.0,0.00550722]
[1764698733878,0.31899841,91611.0,91610.0,0.00550722]
[1764698735076,0.10068402,91611.0,91610.0,0.00550722]
[1764698735869,0.31899841,91611.0,91610.0,0.00550722]
[1764698736989,0.33525841,91611.0,91610.0,0.00550722]
[1764698737565,0.33525841,91611.0,91610.0,0.00250722]
[1764698737774,0.33525841,91611.0,91610.0,0.00150722]
[1764698737974,0.33525841,91611.0,91610.0,0.00250722]
[1764698738720,0.31899841,91611.0,91610.0,0.00250722]
[1764698739760,0.08442402,91611.0,91610.0,0.00250722]
[1764698740163,0.0163244,91616.0,91610.0,0.16214722]
[1764698740382,0.01091429,91623.0,91610.0,0.16214722]
[1764698740383,0.0109144,91622.0,91613.0,0.22922034]
[1764698740556,0.21829194,91621.0,91615.0,0.06631]
[1764698740791,0.23456729,91614.0,91610.0,0.00151564]
[1764698741139,0.02190103,91611.0,91610.0,0.00151564]
[1764698741252,0.02190103,91611.0,91610.0,0.00051564]
[1764698741452,0.0163244,91617.0,91610.0,0.07774147]
[1764698741664,0.01091357,91629.0,91617.0,0.010915]
[1764698741862,0.01091345,91630.0,91622.0,0.045]
[1764698742076,0.02190103,91623.0,91622.0,0.27420258]
[1764698742269,0.02190103,91632.0,91629.0,0.06631]
[1764698742473,0.02190103,91631.0,91630.0,0.06631]
[1764698742715,0.02190103,91638.0,91631.0,0.06631]
[1764698742934,0.0163244,91637.0,91631.0,0.06631]
[1764698743324,0.0163244,91637.0,91631.0,0.21826665]
[1764698743528,0.01091178,91644.0,91631.0,0.21826665]
[1764698743529,0.02190103,91642.0,91638.0,0.0109125]
[1764698743729,0.24012333,91650.0,91644.0,0.06631]
[1764698744025,0.24012333,91650.0,91638.0,0.27416242]
[1764698744026,0.02190103,91641.0,91636.0,0.01091274]
[1764698744355,0.02190103,91634.0,91633.0,0.01091309]
[1764698744557,0.02190103,91638.0,91637.0,0.01091262]
[1764698744877,0.02190103,91644.0,91642.0,0.21824018]
[1764698745229,0.02190103,91650.0,91647.0,0.01091143]
[1764698745442,0.02190103,91650.0,91644.0,0.01091178]
[1764698745631,0.02190103,91650.0,91643.0,0.1042419]
[1764698746027,0.02190103,91665.0,91662.0,0.01090964]
[1764698746232,0.02190103,91665.0,91659.0,0.22910918]
[1764698746430,0.02190103,91665.0,91664.0,0.045]
[1764698746630,0.02190103,91665.0,91664.0,0.32949816]
[1764698746840,0.02190103,91665.0,91664.0,0.11131]
[1764698747193,0.02190103,91665.0,91654.0,0.045]
[1764698747194,0.02190103,91656.0,91654.0,0.045]
[1764698747598,0.02190103,91656.0,91650.0,0.22913224]
[1764698747599,0.01091024,91657.0,91648.0,0.045]
[1764698747800,0.25101885,91656.0,91648.0,0.045]
[1764698748323,0.02190103,91656.0,91650.0,0.01091107]
[1764698748755,0.01091107,91650.0,91642.0,0.0174]
[1764698748963,0.02190103,91644.0,91643.0,0.002]
[1764698749374,0.03816103,91644.0,91643.0,0.002]
[1764698749704,0.02190103,91644.0,91643.0,0.002]
[1764698749910,0.21823408,91645.0,91643.0,0.002]
[1764698750119,0.02190103,91637.0,91632.0,0.01091321]
[1764698750325,0.02190103,91637.0,91636.0,0.045]
[1764698750969,0.01091262,91637.0,91627.0,0.10424381]
[1764698751175,0.2510661,91637.0,91636.0,0.00023324]
[1764698751532,0.02190103,91637.0,91636.0,0.00223324]
[1764698751711,0.24013766,91644.0,91636.0,0.26348755]
[1764698751910,0.01091226,91640.0,91636.0,0.04523324]
[1764698752114,0.03816103,91637.0,91636.0,0.00023324]
[1764698753735,0.03816103,91637.0,91636.0,0.00123324]
[1764698753934,0.02190103,91639.0,91636.0,0.04823324]
[1764698754580,0.03281341,91639.0,91636.0,0.04623324]
[1764698754895,0.02190103,91637.0,91636.0,0.00123324]
[1764698755095,0.03816103,91637.0,91636.0,0.00323324]
[1764698755297,0.25641348,91637.0,91636.0,0.00323324]
[1764698755546,0.02190103,91637.0,91636.0,0.00323324]
[1764698755757,0.24015348,91637.0,91636.0,0.00223324]
[1764698755959,0.25641348,91637.0,91636.0,0.00323324]
[1764698756145,0.03816103,91637.0,91636.0,0.00323324]
[1764698756512,0.03816103,91637.0,91636.0,0.00023324]
[1764698756718,0.03816103,91637.0,91636.0,0.00123324]
[1764698756917,0.03816103,91637.0,91636.0,0.00323324]
[1764698757118,0.02190103,91637.0,91636.0,0.00323324]
[1764698757592,0.24015348,91637.0,91636.0,0.00323324]
[1764698757794,0.02190103,91637.0,91636.0,0.00323324]
[1764698758866,0.24015348,91637.0,91636.0,0.00323324]
[1764698759093,0.25641348,91637.0,91636.0,0.00323324]
[1764698760367,0.02190103,91637.0,91636.0,0.00323324]
[1764698760774,0.02190103,91637.0,91636.0,0.22148807]
[1764698760980,0.01736,91642.0,91641.0,0.01091214]
[1764698761182,0.02190103,91644.0,91640.0,0.01091226]
[1764698761366,0.02190103,91644.0,91639.0,0.045]
[1764698761566,0.02190103,91644.0,91640.0,0.2182453]
[1764698761768,0.02190103,91644.0,91640.0,0.01091226]
[1764698762058,0.0109119,91643.0,91639.0,0.045]
[1764698762486,0.02190103,91640.0,91639.0,0.045]
[1764698762846,0.0336844,91646.0,91644.0,0.21823578]
[1764698763057,0.02190103,91644.0,91643.0,0.22914855]
[1764698763470,0.0163244,91646.0,91641.0,0.22915276]
[1764698763716,0.02190103,91643.0,91642.0,0.01091202]
[1764698763889,0.02190103,91643.0,91642.0,0.22915256]
[1764698764275,0.0163244,91646.0,91645.0,0.2182334]
[1764698764478,0.01626,91673.0,91657.0,0.01091024]
[1764698764479,0.21818479,91666.0,91657.0,0.01091024]
[1764698764660,0.21818479,91666.0,91654.0,0.01091059]
[1764698764661,0.03822543,91660.0,91656.0,0.01091036]
[1764698764887,0.03822543,91660.0,91657.0,0.01091024]
[1764698765075,0.03822543,91660.0,91659.0,0.06631]
[1764698765076,0.0163244,91660.0,91659.0,0.06631]
[1764698765916,0.0163244,91663.0,91661.0,0.01090976]
[1764698766119,0.02190103,91664.0,91662.0,0.21819292]
[1764698766340,0.03280841,91681.0,91673.0,0.22907486]
[1764698766525,0.02190103,91671.0,91663.0,0.04807]
[1764698766758,0.02190103,91671.0,91668.0,0.01090893]
[1764698766963,0.00189243,91680.0,91677.0,0.22906508]
[1764698767164,0.00189243,91680.0,91677.0,0.01090786]
[1764698767594,0.02190103,91674.0,91669.0,0.09636]
[1764698767913,0.02190103,91674.0,91669.0,0.32544402]
[1764698768140,0.02190103,91674.0,91673.0,0.06441]
[1764698768312,0.02190103,91674.0,91672.0,0.21816872]
[1764698768313,0.02190103,91674.0,91662.0,0.01190964]
[1764698768563,0.02190103,91674.0,91668.0,0.01090893]
[1764698768789,0.03822543,91674.0,91668.0,0.01090893]
[1764698769002,0.00189243,91680.0,91677.0,0.22906238]
[1764698769220,0.00189243,91680.0,91679.0,0.06441]
[1764698769878,0.00189243,91680.0,91677.0,0.22906322]
[1764698770080,0.01279993,91680.0,91670.0,0.01736]
[1764698770290,0.01579993,91680.0,91670.0,0.01736]
[1764698770471,0.02190103,91675.0,91674.0,0.01090821]
[1764698771059,0.00189243,91680.0,91679.0,0.54115246]
[1764698771292,0.00189243,91680.0,91679.0,0.60556246]
[1764698771496,0.00189243,91680.0,91679.0,0.70192246]
[1764698773771,0.00189243,91680.0,91679.0,0.70492246]
[1764698773967,0.00189243,91680.0,91679.0,0.70292246]
[1764698774222,0.00189243,91680.0,91679.0,0.72486421]
[1764698774371,0.00489243,91680.0,91679.0,0.70292246]
[1764698774581,0.00489243,91680.0,91679.0,0.72386421]
[1764698774782,0.00489243,91680.0,91679.0,0.70192246]
[1764698775017,0.00689243,91680.0,91679.0,0.70192246]
[1764698775280,0.00689243,91680.0,91679.0,0.78462174]
[1764698775465,0.00489243,91680.0,91679.0,0.78462174]
[1764698775799,0.00589243,91680.0,91679.0,0.78462174]
[1764698776209,0.00289243,91680.0,91679.0,0.78462174]
[1764698776454,0.00589243,91680.0,91679.0,0.78462174]